[Event "*** Titled Tuesday Blitz"]
[Site "Chess.com"]
[Date "2020.11.03"]
[Round "5"]
[White "Vuk2000"]
[Black "crazy_but_lazy"]
[Result "0-1"]
[WhiteElo "2637"]
[BlackElo "2460"]
[TimeControl "180+1"]
[EndTime "10:59:23 PST"]
[Termination "crazy_but_lazy won on time"]

1. d4 {[%clk 0:03:00.9]} 1... Nf6 {[%clk 0:02:59.7]} 2. Bg5 {[%clk 0:03:00.9]}
2... c5 {[%clk 0:02:56.1]} 3. Bxf6 {[%clk 0:03:00.5]} 3... gxf6 {[%clk
0:02:55.1]} 4. d5 {[%clk 0:03:00.4]} 4... Bg7 {[%clk 0:02:41.4]} 5. c4 {[%clk
0:03:00]} 5... f5 {[%clk 0:02:39.6]} 6. Qc2 {[%clk 0:02:59.9]} 6... d6 {[%clk
0:02:38.9]} 7. Nc3 {[%clk 0:02:59.2]} 7... a6 {[%clk 0:02:33.4]} 8. e3 {[%clk
0:02:57]} 8... O-O {[%clk 0:02:32.1]} 9. Bd3 {[%clk 0:02:55.2]} 9... e6 {[%clk
0:02:32.2]} 10. Nge2 {[%clk 0:02:48.1]} 10... Nd7 {[%clk 0:02:29.4]} 11. f4
{[%clk 0:02:41.9]} 11... Rb8 {[%clk 0:02:25.6]} 12. O-O {[%clk 0:02:40.7]} 12...
Nf6 {[%clk 0:01:59.9]} 13. a4 {[%clk 0:02:30.6]} 13... Bd7 {[%clk 0:01:56.3]}
14. Ng3 {[%clk 0:02:20.5]} 14... Re8 {[%clk 0:01:48.3]} 15. Rfe1 {[%clk
0:02:09.8]} 15... b5 {[%clk 0:01:00]} 16. axb5 {[%clk 0:02:05.5]} 16... axb5
{[%clk 0:01:00.3]} 17. cxb5 {[%clk 0:01:07.9]} 17... Nxd5 {[%clk 0:01:00.3]} 18.
Nxd5 {[%clk 0:01:01.4]} 18... exd5 {[%clk 0:01:01.2]} 19. Bxf5 {[%clk
0:00:49.9]} 19... Rxb5 {[%clk 0:00:57.3]} 20. Bxh7+ {[%clk 0:00:42.2]} 20... Kf8
{[%clk 0:00:54.4]} 21. Rab1 {[%clk 0:00:41.6]} 21... Qb6 {[%clk 0:00:40.6]} 22.
Qd2 {[%clk 0:00:14.8]} 22... c4 {[%clk 0:00:23.4]} 23. Nf1 {[%clk 0:00:10.9]}
23... d4 {[%clk 0:00:18.6]} 24. exd4 {[%clk 0:00:10.6]} 24... Qxd4+ {[%clk
0:00:19.3]} 25. Qxd4 {[%clk 0:00:10.3]} 25... Bxd4+ {[%clk 0:00:20.2]} 26. Kh1
{[%clk 0:00:10.6]} 26... Rxb2 {[%clk 0:00:20]} 27. Rxe8+ {[%clk 0:00:09.7]}
27... Bxe8 {[%clk 0:00:18.3]} 28. Rxb2 {[%clk 0:00:07.9]} 28... Bxb2 {[%clk
0:00:19.2]} 29. Ne3 {[%clk 0:00:08]} 29... c3 {[%clk 0:00:16.7]} 30. Kg1 {[%clk
0:00:08]} 30... Bc6 {[%clk 0:00:10.7]} 31. Kf2 {[%clk 0:00:06.7]} 31... d5
{[%clk 0:00:10.8]} 32. Bd3 {[%clk 0:00:05.7]} 32... Ba3 {[%clk 0:00:08.6]} 33.
Ke2 {[%clk 0:00:03.6]} 33... Bc5 {[%clk 0:00:06.8]} 34. Nc2 {[%clk 0:00:04]}
34... d4 {[%clk 0:00:05.7]} 35. g3 {[%clk 0:00:04.4]} 35... Kg7 {[%clk
0:00:05.2]} 36. Bc4 {[%clk 0:00:04.6]} 36... Bd7 {[%clk 0:00:04.9]} 37. Bd3
{[%clk 0:00:04.3]} 37... Bg4+ {[%clk 0:00:05]} 38. Kf2 {[%clk 0:00:04.6]} 38...
Kf6 {[%clk 0:00:03.9]} 39. Ne1 {[%clk 0:00:04.7]} 39... Bd6 {[%clk 0:00:03.5]}
40. Kg2 {[%clk 0:00:04.8]} 40... Bc5 {[%clk 0:00:03.9]} 41. h3 {[%clk
0:00:05.1]} 41... Bd1 {[%clk 0:00:04.4]} 42. Kf2 {[%clk 0:00:04.5]} 42... c2
{[%clk 0:00:02.8]} 0-1

[Event "*** Titled Tuesday Blitz"]
[Site "Chess.com"]
[Date "2020.11.03"]
[Round "5"]
[White "Varinius"]
[Black "giantslayer83"]
[Result "0-1"]
[WhiteElo "2499"]
[BlackElo "2709"]
[TimeControl "180+1"]
[EndTime "10:59:26 PST"]
[Termination "giantslayer83 won by checkmate"]

1. d4 {[%clk 0:03:00.9]} 1... Nf6 {[%clk 0:02:59.7]} 2. Nf3 {[%clk 0:03:00.5]}
2... g6 {[%clk 0:02:59.4]} 3. c4 {[%clk 0:03:00.3]} 3... Bg7 {[%clk 0:02:59.8]}
4. Nc3 {[%clk 0:03:01]} 4... d5 {[%clk 0:02:59.8]} 5. e3 {[%clk 0:03:01.1]} 5...
O-O {[%clk 0:02:59.6]} 6. cxd5 {[%clk 0:03:01.7]} 6... Nxd5 {[%clk 0:02:59.3]}
7. Bc4 {[%clk 0:03:02.4]} 7... Nb6 {[%clk 0:02:50.5]} 8. Bb3 {[%clk 0:03:01.4]}
8... Na6 {[%clk 0:02:50.9]} 9. O-O {[%clk 0:03:00.7]} 9... c5 {[%clk 0:02:51.3]}
10. h3 {[%clk 0:02:47.5]} 10... Bf5 {[%clk 0:02:42.9]} 11. Qe2 {[%clk 0:02:40]}
11... Rc8 {[%clk 0:02:33.1]} 12. a3 {[%clk 0:02:26.7]} 12... cxd4 {[%clk
0:01:40.5]} 13. exd4 {[%clk 0:02:24.7]} 13... Nc7 {[%clk 0:01:40.5]} 14. Bg5
{[%clk 0:02:19.7]} 14... Ncd5 {[%clk 0:01:40.8]} 15. Rac1 {[%clk 0:02:03.7]}
15... h6 {[%clk 0:01:24.2]} 16. Bd2 {[%clk 0:01:47.2]} 16... Nxc3 {[%clk
0:01:05.4]} 17. bxc3 {[%clk 0:01:46.9]} 17... Qd6 {[%clk 0:01:02.5]} 18. c4
{[%clk 0:01:37.7]} 18... Qxa3 {[%clk 0:01:01.9]} 19. Rc3 {[%clk 0:01:37.4]}
19... Nd5 {[%clk 0:00:50.9]} 20. Rfc1 {[%clk 0:00:56]} 20... Nxc3 {[%clk
0:00:50.3]} 21. Rxc3 {[%clk 0:00:56.9]} 21... Qb2 {[%clk 0:00:37.3]} 22. c5
{[%clk 0:00:52.8]} 22... e6 {[%clk 0:00:17.5]} 23. g4 {[%clk 0:00:30]} 23... Bb1
{[%clk 0:00:17.3]} 24. Bc4 {[%clk 0:00:19.7]} 24... Ba2 {[%clk 0:00:14.3]} 25.
Bxa2 {[%clk 0:00:16]} 25... Qxa2 {[%clk 0:00:15.2]} 26. Qb5 {[%clk 0:00:16.4]}
26... b6 {[%clk 0:00:14.6]} 27. c6 {[%clk 0:00:16.3]} 27... Qd5 {[%clk
0:00:12.4]} 28. Qxd5 {[%clk 0:00:14.1]} 28... exd5 {[%clk 0:00:13.3]} 29. Bf4
{[%clk 0:00:14.7]} 29... Rfe8 {[%clk 0:00:12.7]} 30. c7 {[%clk 0:00:14.4]} 30...
Re4 {[%clk 0:00:12.5]} 31. Be5 {[%clk 0:00:12.6]} 31... Bxe5 {[%clk 0:00:10.8]}
32. Nxe5 {[%clk 0:00:12.8]} 32... Rxd4 {[%clk 0:00:11]} 33. Nd7 {[%clk
0:00:05.1]} 33... Rc4 {[%clk 0:00:07]} 34. Re3 {[%clk 0:00:01.9]} 34... Kg7
{[%clk 0:00:04.4]} 35. Nf6 {[%clk 0:00:02.8]} 35... Kxf6 {[%clk 0:00:04.1]} 36.
f4 {[%clk 0:00:02.6]} 36... R8xc7 {[%clk 0:00:03.9]} 37. Kg2 {[%clk 0:00:03.5]}
37... Rxf4 {[%clk 0:00:03.4]} 38. Rg3 {[%clk 0:00:03.2]} 38... Rc2+ {[%clk
0:00:02.8]} 39. Kg1 {[%clk 0:00:04.1]} 39... Rcf2 {[%clk 0:00:02.2]} 40. Rg2
{[%clk 0:00:05]} 40... Rxg2+ {[%clk 0:00:01.7]} 41. Kxg2 {[%clk 0:00:05.9]}
41... g5 {[%clk 0:00:02.1]} 42. Kg3 {[%clk 0:00:06.8]} 42... Ke5 {[%clk
0:00:02.6]} 43. h4 {[%clk 0:00:07.7]} 43... d4 {[%clk 0:00:02.5]} 44. hxg5
{[%clk 0:00:08.6]} 44... hxg5 {[%clk 0:00:03.3]} 45. Kg2 {[%clk 0:00:09]} 45...
d3 {[%clk 0:00:04.2]} 46. Kg3 {[%clk 0:00:09.9]} 46... d2 {[%clk 0:00:05.1]} 47.
Kg2 {[%clk 0:00:10.8]} 47... d1=Q {[%clk 0:00:05.3]} 48. Kg3 {[%clk 0:00:11.7]}
48... Qd3+ {[%clk 0:00:05.2]} 49. Kg2 {[%clk 0:00:12.6]} 49... Qe2+ {[%clk
0:00:05.4]} 50. Kg1 {[%clk 0:00:12.9]} 50... Rf1# {[%clk 0:00:05.4]} 0-1

[Event "*** Titled Tuesday Blitz"]
[Site "Chess.com"]
[Date "2020.11.03"]
[Round "5"]
[White "SGchess01"]
[Black "krzyzan94"]
[Result "1-0"]
[WhiteElo "2846"]
[BlackElo "2660"]
[TimeControl "180+1"]
[EndTime "10:59:27 PST"]
[Termination "SGchess01 won by resignation"]

1. d4 {[%clk 0:03:00.3]} 1... Nf6 {[%clk 0:03:00.1]} 2. c4 {[%clk 0:02:59.9]}
2... d6 {[%clk 0:03:00.7]} 3. Nc3 {[%clk 0:02:59.6]} 3... e5 {[%clk 0:03:00.9]}
4. Nf3 {[%clk 0:02:59.4]} 4... e4 {[%clk 0:03:00.7]} 5. Nd2 {[%clk 0:02:48.9]}
5... Qe7 {[%clk 0:02:51.9]} 6. e3 {[%clk 0:02:41.7]} 6... c6 {[%clk 0:02:50.5]}
7. b4 {[%clk 0:02:36.1]} 7... g6 {[%clk 0:02:48.7]} 8. Be2 {[%clk 0:02:30.9]}
8... Bg7 {[%clk 0:02:48.6]} 9. O-O {[%clk 0:02:31.2]} 9... O-O {[%clk
0:02:49.2]} 10. a4 {[%clk 0:02:31]} 10... Nbd7 {[%clk 0:02:47.1]} 11. Ba3 {[%clk
0:02:30]} 11... Re8 {[%clk 0:02:41.5]} 12. b5 {[%clk 0:02:29.7]} 12... c5 {[%clk
0:02:35]} 13. Nb3 {[%clk 0:02:24.5]} 13... h5 {[%clk 0:02:28]} 14. Qd2 {[%clk
0:02:20.6]} 14... a6 {[%clk 0:02:14.3]} 15. Rad1 {[%clk 0:02:14.7]} 15... axb5
{[%clk 0:02:10.1]} 16. cxb5 {[%clk 0:02:13]} 16... b6 {[%clk 0:02:01.7]} 17.
dxc5 {[%clk 0:01:59.7]} 17... Nxc5 {[%clk 0:01:53.2]} 18. Nd4 {[%clk 0:01:51]}
18... Bg4 {[%clk 0:01:31.3]} 19. Nc6 {[%clk 0:01:47.4]} 19... Qe6 {[%clk
0:01:30]} 20. Bxc5 {[%clk 0:01:38.4]} 20... dxc5 {[%clk 0:01:28.9]} 21. Bxg4
{[%clk 0:01:26.1]} 21... hxg4 {[%clk 0:01:18]} 22. Rc1 {[%clk 0:00:49]} 22...
Qf5 {[%clk 0:01:08.1]} 23. Rfd1 {[%clk 0:00:41]} 23... Qh5 {[%clk 0:01:04.8]}
24. Qd6 {[%clk 0:00:37.2]} 24... Nh7 {[%clk 0:00:52.2]} 25. a5 {[%clk
0:00:36.6]} 25... Re6 {[%clk 0:00:28.3]} 26. Qd5 {[%clk 0:00:32.9]} 26... bxa5
{[%clk 0:00:21.6]} 27. Qxh5 {[%clk 0:00:30]} 27... gxh5 {[%clk 0:00:21.4]} 28.
Nd5 {[%clk 0:00:30.6]} 28... Rf8 {[%clk 0:00:13.5]} 29. Nxa5 {[%clk 0:00:29.4]}
29... Be5 {[%clk 0:00:12.4]} 30. b6 {[%clk 0:00:27.3]} 30... Nf6 {[%clk
0:00:07.8]} 31. Nxf6+ {[%clk 0:00:25.4]} 31... Bxf6 {[%clk 0:00:08.7]} 32. Nc4
{[%clk 0:00:23.4]} 32... Be7 {[%clk 0:00:05]} 33. Rd5 {[%clk 0:00:23.6]} 33...
Rb8 {[%clk 0:00:04]} 34. Rxh5 {[%clk 0:00:23]} 34... Rbxb6 {[%clk 0:00:04]} 35.
Nxb6 {[%clk 0:00:22.7]} 35... Rxb6 {[%clk 0:00:04.9]} 36. Re5 {[%clk 0:00:21.8]}
36... Bd6 {[%clk 0:00:02.3]} 37. Rxe4 {[%clk 0:00:22.1]} 37... f5 {[%clk
0:00:03]} 38. Ra4 {[%clk 0:00:21.5]} 38... Kf7 {[%clk 0:00:03.4]} 39. h3 {[%clk
0:00:19.2]} 39... gxh3 {[%clk 0:00:04.3]} 40. gxh3 {[%clk 0:00:19.5]} 40... Ke6
{[%clk 0:00:05.2]} 41. Kg2 {[%clk 0:00:19.8]} 41... Rb2 {[%clk 0:00:04.9]} 42.
Kf3 {[%clk 0:00:20.2]} 42... Rb8 {[%clk 0:00:04.1]} 43. Ra6 {[%clk 0:00:20]}
43... Ke5 {[%clk 0:00:03.4]} 44. Rd1 {[%clk 0:00:20.4]} 44... Be7 {[%clk
0:00:03.5]} 45. Ra7 {[%clk 0:00:20.5]} 45... Bf8 {[%clk 0:00:03.2]} 46. Rad7
{[%clk 0:00:20.1]} 46... c4 {[%clk 0:00:03.2]} 47. Rd8 {[%clk 0:00:20.4]} 47...
Rxd8 {[%clk 0:00:02.2]} 48. Rxd8 {[%clk 0:00:21.3]} 48... Bc5 {[%clk 0:00:02.6]}
49. Rc8 {[%clk 0:00:21.3]} 49... Kd6 {[%clk 0:00:02.7]} 50. h4 {[%clk
0:00:21.1]} 50... c3 {[%clk 0:00:02.9]} 51. Ke2 {[%clk 0:00:21.7]} 51... Kd5
{[%clk 0:00:03]} 52. Kd3 {[%clk 0:00:21.3]} 52... Bb4 {[%clk 0:00:03.3]} 53. h5
{[%clk 0:00:21.2]} 53... Ke6 {[%clk 0:00:01.7]} 54. h6 {[%clk 0:00:21.4]} 54...
c2 {[%clk 0:00:02.3]} 55. Kxc2 {[%clk 0:00:20.9]} 1-0

[Event "*** Titled Tuesday Blitz"]
[Site "Chess.com"]
[Date "2020.11.03"]
[Round "5"]
[White "kuban1991"]
[Black "NewBornNow"]
[Result "1-0"]
[WhiteElo "2897"]
[BlackElo "2645"]
[TimeControl "180+1"]
[EndTime "10:59:27 PST"]
[Termination "kuban1991 won on time"]

1. Nf3 {[%clk 0:03:00.9]} 1... d6 {[%clk 0:02:58.9]} 2. d4 {[%clk 0:03:00.4]}
2... g6 {[%clk 0:02:57.6]} 3. Nc3 {[%clk 0:03:00.5]} 3... Bg7 {[%clk 0:02:56.5]}
4. e4 {[%clk 0:03:00.8]} 4... c6 {[%clk 0:02:55.5]} 5. Be3 {[%clk 0:02:59.4]}
5... Qb6 {[%clk 0:02:53.7]} 6. Rb1 {[%clk 0:02:50.8]} 6... Nf6 {[%clk 0:02:52]}
7. h3 {[%clk 0:02:50]} 7... O-O {[%clk 0:02:51.3]} 8. Bd3 {[%clk 0:02:35.9]}
8... Qc7 {[%clk 0:02:50.9]} 9. a4 {[%clk 0:02:33.9]} 9... e5 {[%clk 0:02:50.2]}
10. O-O {[%clk 0:02:33.6]} 10... Nbd7 {[%clk 0:02:44.1]} 11. dxe5 {[%clk
0:02:32.2]} 11... Nxe5 {[%clk 0:02:38.5]} 12. Nxe5 {[%clk 0:02:31]} 12... dxe5
{[%clk 0:02:37.3]} 13. b4 {[%clk 0:02:29]} 13... Be6 {[%clk 0:02:31.5]} 14. a5
{[%clk 0:02:19.1]} 14... Nh5 {[%clk 0:02:25.2]} 15. Qf3 {[%clk 0:01:50.7]} 15...
Nf4 {[%clk 0:02:21.7]} 16. Rfd1 {[%clk 0:01:48.6]} 16... Nxd3 {[%clk 0:02:18.6]}
17. Rxd3 {[%clk 0:01:44.5]} 17... b6 {[%clk 0:02:10.3]} 18. Ra1 {[%clk
0:00:44.4]} 18... Bc4 {[%clk 0:01:41.7]} 19. Rdd1 {[%clk 0:00:39.7]} 19... Rab8
{[%clk 0:00:57.4]} 20. axb6 {[%clk 0:00:38.4]} 20... axb6 {[%clk 0:00:56.6]} 21.
Qg4 {[%clk 0:00:39]} 21... h5 {[%clk 0:00:48.5]} 22. Qh4 {[%clk 0:00:37.3]}
22... f6 {[%clk 0:00:42]} 23. Qg3 {[%clk 0:00:29.7]} 23... Kh7 {[%clk 0:00:41]}
24. f3 {[%clk 0:00:25.5]} 24... b5 {[%clk 0:00:37.2]} 25. Bc5 {[%clk 0:00:21.2]}
25... Rfd8 {[%clk 0:00:33.2]} 26. Rxd8 {[%clk 0:00:21.1]} 26... Rxd8 {[%clk
0:00:22.7]} 27. Ra7 {[%clk 0:00:20.8]} 27... Qc8 {[%clk 0:00:22.2]} 28. Be7
{[%clk 0:00:13.2]} 28... Rd7 {[%clk 0:00:21.8]} 29. Qf2 {[%clk 0:00:13.5]} 29...
Qe8 {[%clk 0:00:17]} 30. Qc5 {[%clk 0:00:09.9]} 30... Rxa7 {[%clk 0:00:15.3]}
31. Qxa7 {[%clk 0:00:10.8]} 31... Qf7 {[%clk 0:00:12.2]} 32. Qc5 {[%clk
0:00:09.6]} 32... Qe6 {[%clk 0:00:10.8]} 33. Bd6 {[%clk 0:00:09.5]} 33... Qd7
{[%clk 0:00:10.5]} 34. Nd1 {[%clk 0:00:08.6]} 34... Bh6 {[%clk 0:00:10.1]} 35.
Kf2 {[%clk 0:00:08.6]} 35... f5 {[%clk 0:00:09.1]} 36. exf5 {[%clk 0:00:08]}
36... Qxf5 {[%clk 0:00:09.1]} 37. Ne3 {[%clk 0:00:03.6]} 37... Bxe3+ {[%clk
0:00:08]} 38. Qxe3 {[%clk 0:00:04.5]} 38... Qxc2+ {[%clk 0:00:08.1]} 39. Kg3
{[%clk 0:00:05.1]} 39... Qe2 {[%clk 0:00:05.3]} 40. Qa7+ {[%clk 0:00:03.2]}
40... Kg8 {[%clk 0:00:02.2]} 41. Qe7 {[%clk 0:00:03]} 1-0

[Event "*** Titled Tuesday Blitz"]
[Site "Chess.com"]
[Date "2020.11.03"]
[Round "5"]
[White "RobPeresian"]
[Black "Sharpchess22"]
[Result "0-1"]
[WhiteElo "2459"]
[BlackElo "2821"]
[TimeControl "180+1"]
[EndTime "10:59:31 PST"]
[Termination "Sharpchess22 won by resignation"]

1. Nf3 {[%clk 0:02:49.5]} 1... Nf6 {[%clk 0:02:59.7]} 2. c4 {[%clk 0:02:49.5]}
2... g6 {[%clk 0:03:00.4]} 3. Nc3 {[%clk 0:02:49.4]} 3... Bg7 {[%clk 0:03:01.3]}
4. e4 {[%clk 0:02:49]} 4... d6 {[%clk 0:03:01.5]} 5. d4 {[%clk 0:02:46.5]} 5...
O-O {[%clk 0:03:01.3]} 6. h3 {[%clk 0:02:45.6]} 6... c5 {[%clk 0:02:57.9]} 7. d5
{[%clk 0:02:45.1]} 7... e6 {[%clk 0:02:57.6]} 8. Bd3 {[%clk 0:02:45.1]} 8...
exd5 {[%clk 0:02:57.7]} 9. exd5 {[%clk 0:02:46]} 9... Re8+ {[%clk 0:02:56.7]}
10. Kf1 {[%clk 0:02:46.6]} 10... Na6 {[%clk 0:02:46.3]} 11. g4 {[%clk
0:02:43.7]} 11... h5 {[%clk 0:02:43.9]} 12. Nh2 {[%clk 0:02:24.8]} 12... hxg4
{[%clk 0:02:35.8]} 13. hxg4 {[%clk 0:02:22.1]} 13... Qd7 {[%clk 0:02:36.2]} 14.
f3 {[%clk 0:02:20.2]} 14... Nb4 {[%clk 0:02:30.6]} 15. Kg2 {[%clk 0:01:57.8]}
15... Nxd3 {[%clk 0:02:17.8]} 16. Qxd3 {[%clk 0:01:56]} 16... a6 {[%clk
0:02:18]} 17. a4 {[%clk 0:01:54.8]} 17... Qc7 {[%clk 0:02:16.8]} 18. Bf4 {[%clk
0:01:41.8]} 18... Bd7 {[%clk 0:02:12.1]} 19. Nf1 {[%clk 0:01:40.6]} 19... Qb6
{[%clk 0:02:10.3]} 20. Rb1 {[%clk 0:01:28.6]} 20... Re7 {[%clk 0:02:09.5]} 21.
Ng3 {[%clk 0:01:24.8]} 21... Rae8 {[%clk 0:02:08.3]} 22. g5 {[%clk 0:01:15.8]}
22... Nh7 {[%clk 0:02:05.3]} 23. Nce4 {[%clk 0:01:15.5]} 23... Bxa4 {[%clk
0:01:50.6]} 24. b3 {[%clk 0:01:04.1]} 24... Bd7 {[%clk 0:01:50.1]} 25. Bxd6
{[%clk 0:00:54.4]} 25... Rxe4 {[%clk 0:01:49.3]} 26. Nxe4 {[%clk 0:00:53.4]}
26... Rxe4 {[%clk 0:01:49.2]} 27. fxe4 {[%clk 0:00:35.9]} 27... Qxd6 {[%clk
0:01:48.4]} 28. Qg3 {[%clk 0:00:36.4]} 28... Qe7 {[%clk 0:01:44.8]} 29. Rbe1
{[%clk 0:00:31.6]} 29... Be5 {[%clk 0:01:42.9]} 30. Qh4 {[%clk 0:00:30.9]} 30...
Qxg5+ {[%clk 0:01:37.4]} 31. Kf3 {[%clk 0:00:18.7]} 31... Qxh4 {[%clk
0:01:36.6]} 32. Rxh4 {[%clk 0:00:19.6]} 32... a5 {[%clk 0:01:35.9]} 33. Reh1
{[%clk 0:00:17]} 33... Ng5+ {[%clk 0:01:35.8]} 34. Ke3 {[%clk 0:00:17.6]} 34...
b6 {[%clk 0:01:34.9]} 35. Kd3 {[%clk 0:00:17.2]} 35... Kg7 {[%clk 0:01:33]} 36.
Rh8 {[%clk 0:00:16.3]} 36... Bg4 {[%clk 0:01:29.7]} 37. Ra8 {[%clk 0:00:13.8]}
37... Bf3 {[%clk 0:01:28.9]} 38. Re1 {[%clk 0:00:13.9]} 38... Nh3 {[%clk
0:01:17.5]} 39. Re3 {[%clk 0:00:11.3]} 39... Nf2+ {[%clk 0:01:15.1]} 40. Kc2
{[%clk 0:00:10.3]} 40... Bxe4+ {[%clk 0:01:14.1]} 41. Kd2 {[%clk 0:00:06]} 41...
Bf4 {[%clk 0:01:14.4]} 42. Ke2 {[%clk 0:00:06]} 42... Bc2 {[%clk 0:01:04.9]} 43.
Kxf2 {[%clk 0:00:04.5]} 43... Bxe3+ {[%clk 0:01:05.1]} 44. Kxe3 {[%clk
0:00:05.4]} 44... Bxb3 {[%clk 0:01:05.6]} 45. Kd3 {[%clk 0:00:06]} 45... Kf6
{[%clk 0:01:04.8]} 46. Rb8 {[%clk 0:00:06.4]} 46... Ke5 {[%clk 0:01:04.5]} 47.
Rxb6 {[%clk 0:00:07]} 47... a4 {[%clk 0:01:04.8]} 48. Rb5 {[%clk 0:00:06.6]}
48... Kd6 {[%clk 0:01:04.3]} 49. Rb6+ {[%clk 0:00:06.9]} 49... Ke5 {[%clk
0:01:04.8]} 50. Rb5 {[%clk 0:00:05.7]} 50... g5 {[%clk 0:01:04.1]} 51. Rxc5
{[%clk 0:00:05.7]} 51... g4 {[%clk 0:01:04.6]} 52. Rc7 {[%clk 0:00:05.1]} 52...
f5 {[%clk 0:00:59]} 53. Re7+ {[%clk 0:00:03.7]} 53... Kf6 {[%clk 0:00:59.2]} 54.
Re6+ {[%clk 0:00:03.9]} 54... Kf7 {[%clk 0:00:59.5]} 55. Re1 {[%clk 0:00:03]}
55... a3 {[%clk 0:00:58.4]} 56. Kd4 {[%clk 0:00:02.4]} 56... a2 {[%clk
0:00:58.4]} 57. c5 {[%clk 0:00:02.8]} 57... Bc2 {[%clk 0:00:56.8]} 58. Ra1
{[%clk 0:00:01.4]} 58... Bb1 {[%clk 0:00:57.1]} 59. c6 {[%clk 0:00:02.3]} 59...
Ke7 {[%clk 0:00:57.1]} 60. Kc5 {[%clk 0:00:02.6]} 60... g3 {[%clk 0:00:57.6]}
61. d6+ {[%clk 0:00:03.5]} 61... Kd8 {[%clk 0:00:54.2]} 62. Kb6 {[%clk
0:00:03.8]} 62... g2 {[%clk 0:00:54.4]} 63. Kb7 {[%clk 0:00:02.6]} 63... g1=Q
{[%clk 0:00:53.3]} 64. c7+ {[%clk 0:00:03.5]} 64... Kd7 {[%clk 0:00:53.4]} 65.
c8=Q+ {[%clk 0:00:04.4]} 65... Kxd6 {[%clk 0:00:53.5]} 66. Qc6+ {[%clk
0:00:04.9]} 66... Ke5 {[%clk 0:00:53.2]} 67. Qb5+ {[%clk 0:00:05]} 67... Kf6
{[%clk 0:00:52.9]} 68. Qb6+ {[%clk 0:00:04.5]} 68... Qxb6+ {[%clk 0:00:52.3]}
69. Kxb6 {[%clk 0:00:05.4]} 69... f4 {[%clk 0:00:52.8]} 70. Kc5 {[%clk
0:00:05.6]} 70... f3 {[%clk 0:00:52.1]} 0-1

[Event "*** Titled Tuesday Blitz"]
[Site "Chess.com"]
[Date "2020.11.03"]
[Round "5"]
[White "frederiksvane"]
[Black "GM_LOADING"]
[Result "1-0"]
[WhiteElo "2634"]
[BlackElo "2474"]
[TimeControl "180+1"]
[EndTime "10:59:32 PST"]
[Termination "frederiksvane won by resignation"]

1. e4 {[%clk 0:03:00.9]} 1... e5 {[%clk 0:02:58.9]} 2. Nf3 {[%clk 0:02:52.9]}
2... Nc6 {[%clk 0:02:58.9]} 3. Bb5 {[%clk 0:02:46.8]} 3... g6 {[%clk 0:02:58.6]}
4. d4 {[%clk 0:02:37.2]} 4... exd4 {[%clk 0:02:57.6]} 5. c3 {[%clk 0:02:37.3]}
5... a6 {[%clk 0:02:56.7]} 6. Bxc6 {[%clk 0:02:32.6]} 6... dxc6 {[%clk
0:02:56.5]} 7. cxd4 {[%clk 0:02:32.9]} 7... Bg7 {[%clk 0:02:56.9]} 8. Nc3 {[%clk
0:02:30.8]} 8... Ne7 {[%clk 0:02:55.6]} 9. O-O {[%clk 0:02:29.8]} 9... h6 {[%clk
0:02:51.8]} 10. h3 {[%clk 0:02:28.5]} 10... g5 {[%clk 0:02:52]} 11. Be3 {[%clk
0:02:22.3]} 11... g4 {[%clk 0:02:43.4]} 12. hxg4 {[%clk 0:02:14.1]} 12... Bxg4
{[%clk 0:02:42.9]} 13. Re1 {[%clk 0:01:57.8]} 13... Qd6 {[%clk 0:02:38.6]} 14.
e5 {[%clk 0:01:53.1]} 14... Qe6 {[%clk 0:02:33.3]} 15. Ne4 {[%clk 0:01:53.3]}
15... O-O-O {[%clk 0:02:25.5]} 16. Nc5 {[%clk 0:01:37.5]} 16... Qd5 {[%clk
0:02:25.2]} 17. Qb3 {[%clk 0:01:34.9]} 17... Qxb3 {[%clk 0:00:33.4]} 18. Nxb3
{[%clk 0:01:34.5]} 18... Bxf3 {[%clk 0:00:33.1]} 19. gxf3 {[%clk 0:01:35.4]}
19... Nf5 {[%clk 0:00:32.1]} 20. Kf1 {[%clk 0:01:32.8]} 20... Rd5 {[%clk
0:00:25.4]} 21. Ke2 {[%clk 0:01:31.4]} 21... Rhd8 {[%clk 0:00:24.3]} 22. Rg1
{[%clk 0:01:28.8]} 22... Bf8 {[%clk 0:00:23.7]} 23. Rg8 {[%clk 0:01:23.3]} 23...
c5 {[%clk 0:00:19.9]} 24. dxc5 {[%clk 0:00:47.8]} 24... Rxe5 {[%clk 0:00:18.7]}
25. f4 {[%clk 0:00:48.1]} 25... Re6 {[%clk 0:00:16.1]} 26. Kf3 {[%clk 0:00:47]}
26... c6 {[%clk 0:00:13.6]} 27. Rh1 {[%clk 0:00:46.3]} 27... Be7 {[%clk
0:00:07.9]} 28. Rxd8+ {[%clk 0:00:45.1]} 28... Bxd8 {[%clk 0:00:08.3]} 29. Rh5
{[%clk 0:00:44.6]} 29... Ne7 {[%clk 0:00:04.1]} 30. Nd4 {[%clk 0:00:41.4]} 30...
Rg6 {[%clk 0:00:03.4]} 31. f5 {[%clk 0:00:41.3]} 31... Rg8 {[%clk 0:00:03.4]}
32. Rxh6 {[%clk 0:00:39.9]} 32... Nd5 {[%clk 0:00:03.5]} 33. Rh7 {[%clk
0:00:38.9]} 33... f6 {[%clk 0:00:02.2]} 34. Ne6 {[%clk 0:00:38.2]} 34... Be7
{[%clk 0:00:01.8]} 35. Bd4 {[%clk 0:00:38.1]} 35... Kd7 {[%clk 0:00:02.4]} 36.
Rf7 {[%clk 0:00:37.7]} 36... Ke8 {[%clk 0:00:02.4]} 37. Rh7 {[%clk 0:00:37]}
37... Kd7 {[%clk 0:00:03.3]} 38. Nf4 {[%clk 0:00:30.4]} 38... Nxf4 {[%clk
0:00:03.1]} 39. Kxf4 {[%clk 0:00:31.3]} 39... Ke8 {[%clk 0:00:03.5]} 40. Rh6
{[%clk 0:00:31.8]} 40... Rg1 {[%clk 0:00:03.1]} 41. Bxf6 {[%clk 0:00:30.5]}
41... Bxf6 {[%clk 0:00:03.8]} 42. Rxf6 {[%clk 0:00:31.4]} 42... Ra1 {[%clk
0:00:04.3]} 43. Rh6 {[%clk 0:00:30.2]} 43... Rxa2 {[%clk 0:00:04.2]} 44. Ke5
{[%clk 0:00:30.4]} 44... Rxb2 {[%clk 0:00:04.6]} 45. Kf6 {[%clk 0:00:28.3]}
45... Rxf2 {[%clk 0:00:04.8]} 46. Rh8+ {[%clk 0:00:28.8]} 46... Kd7 {[%clk
0:00:04.8]} 47. Kg6 {[%clk 0:00:26.8]} 47... a5 {[%clk 0:00:05.2]} 48. f6 {[%clk
0:00:27.2]} 48... Ke6 {[%clk 0:00:05.7]} 49. Re8+ {[%clk 0:00:26.9]} 49... Kd5
{[%clk 0:00:06.2]} 50. f7 {[%clk 0:00:25.4]} 50... a4 {[%clk 0:00:06.8]} 51.
f8=Q {[%clk 0:00:22.2]} 51... Rxf8 {[%clk 0:00:07.3]} 52. Rxf8 {[%clk
0:00:23.1]} 52... Kxc5 {[%clk 0:00:07.9]} 53. Kf5 {[%clk 0:00:24]} 53... Kb4
{[%clk 0:00:07.7]} 54. Ke4 {[%clk 0:00:24.2]} 54... c5 {[%clk 0:00:08]} 55. Kd3
{[%clk 0:00:24.6]} 55... Kb3 {[%clk 0:00:08.6]} 56. Rc8 {[%clk 0:00:22.5]} 56...
b6 {[%clk 0:00:08.2]} 57. Rc6 {[%clk 0:00:22.8]} 57... a3 {[%clk 0:00:08.1]} 58.
Rxb6+ {[%clk 0:00:23.1]} 58... Ka2 {[%clk 0:00:08.7]} 59. Kc2 {[%clk 0:00:22.8]}
59... c4 {[%clk 0:00:08.9]} 60. Rb4 {[%clk 0:00:22.4]} 1-0